fUST/lending_fUST_20250810
["ID","MTS","AMOUNT","RATE_DAILY","PERIOD"]
[378164223,1754755858044,-179.13042368,0.00024375,6]
[378164224,1754755858053,-498.707,0.00024377,6]
[378164225,1754755858063,-8454.51239742,0.000244,2]
[378164226,1754755858072,-460.0,0.00024413,2]
[378164227,1754755858081,-207.15,0.00024413,2]
[378164228,1754755858091,-628.81,0.00024413,2]
[378164229,1754755858101,-585.25,0.00024413,2]
[378164230,1754755858111,-460.0,0.00024413,2]
[378164231,1754755858120,-460.0,0.00024413,2]
[378164232,1754755858130,-597.52,0.00024413,2]
[378164233,1754755858140,-151.0,0.00024413,7]
[378164234,1754755858149,-1788.84,0.00024413,2]
[378164235,1754755858159,-460.0,0.00024414,2]
[378164236,1754755858169,-460.0,0.00024414,2]
[378164237,1754755858178,-990.4,0.00024422,2]
[378164238,1754755858187,-583.12,0.00024422,2]
[378164239,1754755858197,-495.89,0.00024422,2]
[378164240,1754755858207,-1042.63,0.00024422,2]
[378164241,1754755858216,-595.41,0.00024422,2]
[378164242,1754755858228,-151.0,0.00024423,7]
[378164243,1754755858237,-754.9,0.00024423,2]
[378164244,1754755858247,-529.5105082,0.00024465,2]
[378164245,1754755858257,-483.00602195,0.00024494,2]
[378164246,1754755858267,-542.53,0.00024499,2]
[378164247,1754755858278,-151.0,0.000245,7]
[378164248,1754755858289,-483.614096,0.000245,7]
[378164249,1754755858299,-483.614096,0.000245,7]
[378164250,1754755858309,-151.0,0.000245,7]
[378164251,1754755858318,-151.0,0.000245,7]
[378164252,1754755858328,-164.695567,0.000245,7]
[378164253,1754755858341,-164.695567,0.000245,7]
[378164254,1754755858350,-151.0,0.000245,7]
[378164255,1754755858359,-151.0,0.000245,7]
[378164256,1754755858368,-183.321116,0.000245,7]
[378164257,1754755858378,-183.321116,0.000245,7]
[378164258,1754755858388,-842.95011917,0.000245,7]
[378164259,1754755858397,-160.0,0.000245,7]
[378164260,1754755858407,-271.679197,0.000245,7]
[378164261,1754755858416,-271.679197,0.000245,7]
[378164262,1754755858425,-231.92402426,0.000245,7]
[378164263,1754755858435,-12666.14847857,0.000245,7]
[378164264,1754755858444,-167.126061,0.000245,7]
[378164265,1754755858454,-167.126061,0.000245,7]
[378164266,1754755858467,-419.746181,0.000245,7]
[378164267,1754755858477,-419.746181,0.000245,7]
[378164268,1754755858486,-259.970801,0.00024525,7]
[378164269,1754755858495,-259.970801,0.00024525,7]
[378164270,1754755858506,-151.905249,0.00024525,7]
[378164271,1754755858516,-213.465376,0.00024525,7]
[378164272,1754755858526,-151.0,0.00024525,7]
[378164273,1754755858536,-213.465376,0.00024525,7]
[378164274,1754755858546,-151.0,0.00024525,7]
[378164275,1754755858556,-151.0,0.00024525,7]
[378164276,1754755858565,-151.0,0.00024525,7]
[378164277,1754755858574,-971.0,0.00024562,2]
[378164278,1754755858584,-636.0,0.00024562,2]
[378164279,1754755858594,-2150.0,0.00024562,2]
[378164280,1754755858604,-560.0,0.00024562,2]
[378164281,1754755858614,-824.03,0.00024567,2]
[378164282,1754755858623,-2116.47,0.00024567,2]
[378164283,1754755858633,-460.0,0.00024567,2]
[378164284,1754755858642,-1719.64,0.00024567,2]
[378164285,1754755858651,-1421.88,0.00024567,2]
[378164286,1754755858661,-460.0,0.00024567,2]
[378164287,1754755858672,-460.0,0.00024567,2]
[378164288,1754755858682,-710.3,0.00024567,2]
[378164289,1754755858692,-864.02,0.00024567,2]
[378164290,1754755858701,-659.44,0.00024567,2]
[378164291,1754755858711,-1697.12,0.00024567,2]
[378164292,1754755858721,-527.59,0.00024567,2]
[378164293,1754755858730,-1063.74,0.00024568,2]
[378164294,1754755858740,-460.0,0.00024568,2]
[378164295,1754755858750,-1479.52,0.00024568,2]
[378164296,1754755858759,-3505.32,0.00024568,2]
[378164297,1754755858769,-850.09,0.00024568,2]
[378164298,1754755858779,-1179.42,0.00024568,2]
[378164299,1754755858788,-472.95,0.00024568,2]
[378164300,1754755858798,-460.0,0.00024596,2]
[378164301,1754755858808,-460.0,0.00024597,2]
[378164302,1754755858817,-460.0,0.00024597,2]
[378164303,1754755858827,-604.4426983,0.00024597,2]
[378164304,1754755858837,-554.93,0.00024597,2]
[378164305,1754755858846,-918.02,0.00024597,2]
[378164306,1754755858855,-460.0,0.00024597,2]
[378164307,1754755858865,-764.96,0.00024597,2]
[378164308,1754755858874,-460.0,0.00024597,2]
[378164309,1754755858884,-460.0,0.00024597,2]
[378164310,1754755858893,-460.0,0.00024597,2]
[378164311,1754755858902,-460.0,0.00024597,2]
[378164312,1754755858911,-460.0,0.00024597,2]
[378164313,1754755858921,-679.77,0.00024597,2]
[378164314,1754755858930,-151.0,0.000246,5]
[378164315,1754755858940,-1891.4,0.00024657,4]
[378164316,1754755858949,-151.0,0.00024658,2]
[378164317,1754755858958,-151.0,0.00024658,2]
[378164318,1754755858967,-151.0,0.00024658,2]
[378164319,1754755858976,-151.0,0.00024658,2]
[378164320,1754755858985,-173.69459988,0.00024658,2]
[378164321,1754755858995,-151.0,0.00024658,2]
[378164322,1754755859004,-151.0,0.00024658,2]
[378164323,1754755859013,-151.0,0.00024658,2]
[378164324,1754755859023,-151.0,0.00024658,2]
[378164325,1754755859032,-500.0,0.00024658,2]
[378164326,1754755859042,-151.0,0.00024658,2]
[378164327,1754755859051,-151.0,0.00024658,2]
[378164328,1754755859060,-151.0,0.00024658,2]
[378164329,1754755859070,-151.0,0.00024658,2]
[378164330,1754755859080,-151.0,0.00024658,2]
[378164331,1754755859089,-151.0,0.00024658,2]
[378164332,1754755859099,-276.84263664,0.00024658,2]
[378164333,1754755859108,-152.83067701,0.00024658,2]
[378164334,1754755859117,-151.0,0.00024658,2]
[378164335,1754755859127,-151.0,0.00024658,2]
[378164336,1754755859136,-151.0,0.00024658,2]
[378164337,1754755859146,-151.0,0.00024658,2]
[378164338,1754755859155,-151.0,0.00024658,2]
[378164339,1754755859164,-151.0,0.00024658,2]
[378164340,1754755859174,-475.0,0.00024658,2]
[378164341,1754755859288,-151.0,0.00024658,2]
[378164342,1754755859298,-151.0,0.00024658,2]
[378164343,1754755859308,-151.0,0.00024658,2]
[378164344,1754755859318,-151.0,0.00024658,2]
[378164345,1754755859327,-460.0,0.00024687,2]
[378164346,1754755859338,-628.81,0.00024687,2]
[378164347,1754755859347,-585.25,0.00024687,2]
[378164348,1754755859356,-460.0,0.00024687,2]
[378164349,1754755859366,-460.0,0.00024687,2]
[378164350,1754755859375,-597.52,0.00024687,2]
[378164351,1754755859385,-151.0,0.00024687,7]
[378164352,1754755859394,-1788.84,0.00024687,2]
[378164353,1754755859404,-460.0,0.00024688,2]
[378164354,1754755859413,-460.0,0.00024688,2]
[378164355,1754755859423,-461.61123508,0.00024689,2]
[378164356,1754755859433,-1846.44494033,0.00024689,2]
[378164357,1754755859442,-4150.34661464,0.00024689,2]
[378164358,1754755859452,-651.75001232,0.00024689,2]
[378164359,1754755859464,-2604.39304923,0.00024689,2]
[378164360,1754755859475,-151.0,0.00024689,7]
[378164361,1754755859484,-990.4,0.00024696,2]
[378164362,1754755859494,-583.12,0.00024696,2]
[378164363,1754755859503,-495.89,0.00024696,2]
[378164364,1754755859514,-1042.63,0.00024696,2]
[378164365,1754755859523,-595.41,0.00024696,2]
[378164366,1754755859533,-754.9,0.00024697,2]
[378164367,1754755859544,-150.32667,0.000247,8]
[378164368,1754755859553,-3000.0,0.00024712,2]
[378164369,1754755859563,-1044.42475222,0.00024712,2]
[378164370,1754755859572,-150.32667,0.00024795,14]
[378164371,1754755859582,-151.0,0.000248,7]
[378164372,1754755859591,-151.0,0.000248,7]
[378164373,1754755859600,-164.695567,0.000248,7]
[378164374,1754755859610,-164.695567,0.000248,7]
[378164375,1754755859619,-10509.8845961,0.000248,2]
[378164376,1754755859629,-160.0,0.00024808,3]
[378164377,1754755859638,-1991.0,0.00024831,2]
[378164378,1754755859648,-151.0,0.00024832,7]
[378164379,1754755859658,-824.03,0.00024841,2]
[378164380,1754755859667,-2116.47,0.00024841,2]
[378164381,1754755859677,-460.0,0.00024841,2]
[378164382,1754755859687,-1719.64,0.00024841,2]
[378164383,1754755859696,-1421.88,0.00024841,2]
[378164384,1754755859706,-460.0,0.00024841,2]
[378164385,1754755859715,-460.0,0.00024841,2]
[378164386,1754755859724,-710.3,0.00024841,2]
[378164387,1754755859735,-864.02,0.00024841,2]
[378164388,1754755859744,-659.44,0.00024841,2]
[378164389,1754755859753,-1697.12,0.00024841,2]
[378164390,1754755859763,-527.59,0.00024841,2]
[378164391,1754755859772,-1063.74,0.00024842,2]
[378164392,1754755859781,-265.37,0.00024842,2]
[378164393,1754755859791,-1479.52,0.00024842,2]
[378164394,1754755859800,-3505.32,0.00024842,2]
[378164395,1754755859809,-850.09,0.00024842,2]
[378164396,1754755859818,-1179.42,0.00024842,2]
[378164397,1754755859828,-472.95,0.00024842,2]
[378164398,1754755859838,-1991.0,0.00024855,2]
[378164399,1754755859848,-460.0,0.0002487,2]
[378164400,1754755859858,-460.0,0.00024871,2]
[378164401,1754755859867,-460.0,0.00024871,2]
[378164402,1754755859876,-554.93,0.00024871,2]
[378164403,1754755859886,-918.02,0.00024871,2]
[378164404,1754755859895,-460.0,0.00024871,2]
[378164405,1754755859905,-764.96,0.00024871,2]
[378164406,1754755859915,-460.0,0.00024871,2]
[378164407,1754755859924,-460.0,0.00024871,2]
[378164408,1754755859933,-460.0,0.00024871,2]
[378164409,1754755859943,-460.0,0.00024871,2]
[378164410,1754755859952,-460.0,0.00024871,2]
[378164411,1754755859962,-679.77,0.00024871,2]
[378164412,1754755859972,-300.0,0.00024873,2]
[378164413,1754755859981,-737.11454275,0.000249,2]
[378164414,1754755859990,-204.844558,0.000249,7]
[378164415,1754755860000,-259.970801,0.000249,7]
[378164416,1754755860009,-259.970801,0.000249,7]
[378164417,1754755860019,-213.465376,0.000249,7]
[378164418,1754755860028,-151.0,0.000249,7]
[378164419,1754755860038,-213.465376,0.000249,7]
[378164420,1754755860048,-215.427826,0.000249,7]
[378164421,1754755860058,-483.614096,0.000249,7]
[378164422,1754755860068,-483.614096,0.000249,7]
[378164423,1754755860078,-483.614096,0.000249,7]
[378164424,1754755860088,-483.614096,0.000249,7]
[378164425,1754755860098,-151.0,0.000249,7]
[378164426,1754755860108,-151.0,0.000249,7]
[378164427,1754755860117,-164.695567,0.000249,7]
[378164428,1754755860127,-164.695567,0.000249,7]
[378164429,1754755860137,-151.0,0.000249,7]
[378164430,1754755860146,-151.0,0.000249,7]
[378164431,1754755860156,-151.0,0.000249,7]
[378164432,1754755860166,-151.0,0.000249,7]
[378164433,1754755860175,-246.303748,0.000249,7]
[378164434,1754755860184,-183.321116,0.000249,7]
[378164435,1754755860194,-183.321116,0.000249,7]
[378164436,1754755860203,-271.679197,0.000249,7]
[378164437,1754755860213,-271.679197,0.000249,7]
[378164438,1754755860222,-151.0,0.000249,7]
[378164439,1754755860231,-379913.45606301,0.000249,2]
[378164440,1754755860298,-460.0,0.00021583,2]
[378164441,1754755860308,-112.325,0.00022101,2]
[378164442,1754755860319,-347.675,0.00022101,2]
[378164443,1754755860329,-461.55179734,0.000238,7]
[378164444,1754755860339,-32014.64261467,0.000249,2]
[378164445,1754755860394,-527.77735381,0.00024,7]
[378164446,1754755860403,-80037.86978111,0.000249,2]
[378164447,1754755860528,-163.92,0.00021847,10]
[378164448,1754755860539,-126085.4304551,0.000249,2]
[378164449,1754755860552,-32757.9482,0.000249,2]
[378164450,1754755861664,356.35321084,0.000199,2]
[378164452,1754755884608,5096.67325247,0.00021483,2]
[378164453,1754755884633,20000.0,0.00021483,2]
[378164454,1754755884657,20000.0,0.00021483,2]
[378164455,1754755884794,20000.0,0.00021483,2]
[378164456,1754755884818,20000.0,0.00021483,2]
[378164457,1754755884843,20000.0,0.00021483,2]
[378164458,1754755884873,264287.60732226,0.00021483,2]
[378164459,1754755911855,368.2,0.0002272,30]
[378164460,1754755912266,736.39,0.00023802,30]
[378164461,1754755912769,1104.59,0.00024884,30]
[378164462,1754755913122,1472.78,0.00025965,30]
[378164463,1754755913564,1840.98,0.00027047,30]
[378164464,1754755938881,328.33285704,0.00021452,2]
[378164465,1754755979809,1444.0,0.00029041,120]
[378164466,1754755991036,340.16,0.00022521,30]
[378164467,1754755991473,680.33,0.00023593,30]
[378164468,1754755991886,1020.49,0.00024666,30]
[378164469,1754755992292,1360.66,0.00025738,30]
[378164470,1754755992720,1700.82,0.0002681,30]
[378164471,1754755993134,2040.98,0.00027883,30]
[378164472,1754756010040,203.04195854,0.00021452,2]
[378164473,1754756010949,246.936318,0.00020743,2]
[378164474,1754756039516,11119.26569761,0.000199,2]
[378164475,1754756039996,24900.0,0.00020754,2]
[378164476,1754756048542,192.92285,0.00020906,2]
[378164477,1754756049080,221.77268498,0.00020936,2]
[378164478,1754756072806,301.2,0.00022645,30]
[378164479,1754756073234,602.4,0.00023724,30]
[378164480,1754756073672,903.6,0.00024802,30]
[378164481,1754756074143,1204.8,0.0002588,30]
[378164482,1754756074607,1506.0,0.00026959,30]
[378164483,1754756097391,1135.31802759,0.00021483,2]
[378164484,1754756153239,278.64,0.00022922,30]
[378164485,1754756153685,557.28,0.00024013,30]
[378164486,1754756154153,835.91,0.00025105,30]
[378164487,1754756154583,1114.55,0.00026196,30]
[378164488,1754756155001,1393.19,0.00027288,30]
[378164491,1754756206897,1000.0,0.00020575,2]
[378164492,1754756231201,10797.63147245,0.000199,2]
[378164494,1754756234670,257.91,0.0002268,30]
[378164495,1754756235069,515.82,0.0002376,30]
[378164496,1754756235480,773.73,0.0002484,30]
[378164497,1754756235882,1031.64,0.0002592,30]
[378164498,1754756236290,1289.55,0.00027001,30]
[378164499,1754756250620,10000.0,0.00020575,2]
[378164500,1754756272214,200.0,0.00027,30]
[378164501,1754756293113,282.62147023,0.00021451,2]
[378164502,1754756304307,993.40327415,0.00021482,2]
[378164503,1754756318402,238.87,0.00022747,30]
[378164504,1754756318826,477.74,0.0002383,30]
[378164505,1754756319268,716.6,0.00024913,30]
[378164506,1754756319748,955.47,0.00025996,30]
[378164507,1754756320166,1194.34,0.00027079,30]
[378164509,1754756396604,534.556791,0.00013699,2]
[378164510,1754756396899,534.556791,0.00020187,2]
[378164511,1754756404540,221.37,0.00022591,30]
[378164512,1754756404990,442.74,0.00023667,30]
[378164513,1754756405412,664.12,0.00024743,30]
[378164514,1754756405864,885.49,0.00025819,30]
[378164515,1754756406285,1106.86,0.00026895,30]
[378164516,1754756406748,1328.23,0.0002797,30]
[378164517,1754756416998,10437.71042332,0.000199,2]
[378164518,1754756438689,18997.288793,0.000206,2]
[378164519,1754756484826,198.05,0.00022592,30]
[378164520,1754756485997,396.1,0.00023668,30]
[378164521,1754756486471,594.16,0.00024744,30]
[378164522,1754756486888,792.21,0.0002582,30]
[378164523,1754756487307,990.26,0.00026896,30]
[378164524,1754756487726,1188.31,0.00027972,30]
[378164525,1754756514665,869.22786489,0.00021481,2]
[378164528,1754756552014,166.2073023,0.000206,2]
[378164529,1754756565707,177.39,0.00022745,30]
[378164530,1754756566103,354.78,0.00023828,30]
[378164531,1754756567319,532.18,0.00024911,30]
[378164532,1754756567474,709.57,0.00025994,30]
[378164533,1754756567891,886.96,0.00027077,30]
[378164535,1754756602106,10089.78674262,0.000199,2]
[378164536,1754756648757,164.89,0.00022911,30]
[378164537,1754756649173,329.78,0.00024002,30]
[378164538,1754756649664,494.68,0.00025093,30]
[378164539,1754756650082,659.57,0.00026184,30]
[378164540,1754756650494,824.46,0.00027275,30]
[378164541,1754756706490,666.0,0.000206,2]
[378164542,1754756706911,28056.5955379,0.00020765,2]
[378164543,1754756720074,760.57438177,0.00021453,2]
[378164544,1754756729284,153.4,0.00022781,30]
[378164545,1754756729684,306.81,0.00023866,30]
[378164546,1754756730101,460.21,0.0002495,30]
[378164547,1754756732934,613.62,0.00026035,30]
[378164548,1754756733352,767.02,0.0002712,30]
[378164549,1754756769625,1444.0,0.00029041,120]
[378164550,1754756792673,9753.46051775,0.000199,2]
[378164551,1754756814043,150.0,0.0002275,30]
[378164552,1754756814970,285.69,0.00023833,30]
[378164553,1754756815386,428.54,0.00024916,30]
[378164554,1754756815807,571.39,0.00026,30]
[378164555,1754756816199,714.23,0.00027083,30]
[378164560,1754756866621,9975.025,0.00030137,120]
[378164561,1754756901185,150.0,0.00022746,30]
[378164562,1754756901589,266.2,0.00023829,30]
[378164563,1754756902021,399.31,0.00024912,30]
[378164564,1754756902455,532.41,0.00025995,30]
[378164565,1754756902893,665.51,0.00027078,30]
[378164566,1754756918428,13990.95962896,0.0002,20]
[378164568,1754756921527,271.924465,0.000206,2]
[378164569,1754756926901,18523.0,0.00021,2]
[378164571,1754756960343,665.50258404,0.00021453,2]
[378164572,1754756976526,9428.34516711,0.000199,2]
[378164573,1754756983093,150.0,0.00022771,30]
[378164574,1754756983476,248.18,0.00023856,30]
[378164575,1754756983904,372.27,0.0002494,30]
[378164576,1754756984324,496.36,0.00026024,30]
[378164577,1754756984739,620.45,0.00027109,30]
[378164578,1754757003074,1200.0,0.0002155,2]
[378164579,1754757003125,300.0,0.0002155,2]
[378164620,1754757032491,-1200.0,0.00021551,2]
[378164622,1754757032501,-504.01,0.00021551,2]
[378164624,1754757032511,-242.08814127,0.00021551,2]
[378164626,1754757032521,-460.0,0.00021552,2]
[378164628,1754757032530,-460.0,0.00021552,2]
[378164630,1754757032539,-460.0,0.00021552,2]
[378164632,1754757032549,-460.0,0.00021552,2]
[378164634,1754757032558,-460.0,0.00021552,2]
[378164636,1754757032567,-460.0,0.00021552,2]
[378164638,1754757032578,-460.0,0.00021552,2]
[378164640,1754757032588,-460.0,0.00021552,2]
[378164642,1754757032597,-460.0,0.00021552,2]
[378164644,1754757032606,-535.51,0.00021552,2]
[378164646,1754757032615,-460.0,0.00021552,2]
[378164648,1754757032625,-628.05,0.00021552,2]
[378164650,1754757032635,-460.0,0.00021552,2]
[378164652,1754757032644,-1146.42,0.00021552,2]
[378164654,1754757032654,-460.0,0.00021552,2]
[378164656,1754757032664,-460.0,0.00021552,2]
[378164658,1754757032673,-480.68,0.00021552,2]
[378164660,1754757032682,-700.24,0.00021552,2]
[378164662,1754757032692,-460.0,0.00021552,2]
[378164664,1754757032702,-460.0,0.00021552,2]
[378164666,1754757032711,-829.43,0.00021552,2]
[378164667,1754757032721,-460.0,0.00021552,2]
[378164669,1754757032730,-460.0,0.00021552,2]
[378164671,1754757032740,-460.0,0.00021552,2]
[378164673,1754757032750,-460.0,0.00021552,2]
[378164674,1754757032759,-460.0,0.00021552,2]
[378164676,1754757032770,-342.01038347,0.00021552,2]
[378164678,1754757032782,-1003.12,0.00021552,2]
[378164680,1754757032791,-460.0,0.00021552,2]
[378164681,1754757032801,-460.0,0.00021552,2]
[378164682,1754757032810,-460.0,0.00021552,2]
[378164683,1754757032822,-460.0,0.00021552,2]
[378164684,1754757032832,-1118.53,0.00021552,2]
[378164685,1754757032843,-460.0,0.00021552,2]
[378164686,1754757032854,-460.0,0.00021552,2]
[378164687,1754757032864,-664.83,0.00021552,2]
[378164688,1754757032874,-460.0,0.00021552,2]
[378164689,1754757032884,-460.0,0.00021552,2]
[378164690,1754757032894,-561.96,0.00021552,2]
[378164691,1754757032904,-460.0,0.00021552,2]
[378164692,1754757032914,-460.0,0.00021552,2]
[378164693,1754757032923,-989.99,0.00021552,2]
[378164694,1754757032933,-460.0,0.00021552,2]
[378164695,1754757032943,-460.0,0.00021552,2]
[378164696,1754757032952,-460.0,0.00021552,2]
[378164697,1754757032961,-460.0,0.00021553,2]
[378164698,1754757032971,-460.0,0.00021553,2]
[378164699,1754757032981,-473.40027041,0.00021553,2]
[378164700,1754757032991,-460.0,0.00021553,2]
[378164701,1754757033001,-460.0,0.00021553,2]
[378164702,1754757033011,-460.0,0.00021553,2]
[378164703,1754757033020,-460.0,0.00021553,2]
[378164704,1754757033030,-460.0,0.00021553,2]
[378164705,1754757033041,-460.0,0.00021553,2]
[378164706,1754757033051,-460.0,0.00021553,2]
[378164707,1754757033062,-460.0,0.00021553,2]
[378164708,1754757033073,-151.0,0.00021553,2]
[378164709,1754757033085,-151.0,0.00021553,2]
[378164710,1754757033095,-151.0,0.00021553,2]
[378164711,1754757033105,-151.0,0.00021553,2]
[378164712,1754757033115,-173.69459988,0.00021553,2]
[378164713,1754757033125,-151.0,0.00021553,2]
[378164714,1754757033135,-151.0,0.00021553,2]
[378164715,1754757033145,-151.0,0.00021553,2]
[378164716,1754757033155,-151.0,0.00021553,2]
[378164717,1754757033164,-151.0,0.00021553,2]
[378164718,1754757033174,-151.0,0.00021553,2]
[378164719,1754757033184,-151.0,0.00021553,2]
[378164720,1754757033194,-863.06,0.00021553,2]
[378164721,1754757033204,-277.43046646,0.00021553,2]
[378164722,1754757033214,-1118.02,0.00021553,2]
[378164723,1754757033223,-460.0,0.00021553,2]
[378164724,1754757033233,-619.0,0.00021553,2]
[378164725,1754757033243,-460.0,0.00021553,2]
[378164726,1754757033252,-460.0,0.00021553,2]
[378164727,1754757033261,-500.0,0.00021553,2]
[378164728,1754757033271,-151.0,0.00021553,2]
[378164729,1754757033281,-151.0,0.00021553,2]
[378164730,1754757033291,-465.65240056,0.00021581,2]
[378164731,1754757033302,-460.0,0.00021581,2]
[378164732,1754757033312,-460.0,0.00021581,2]
[378164733,1754757033322,-460.0,0.00021581,2]
[378164734,1754757033334,-460.0,0.00021581,2]
[378164735,1754757033345,-460.0,0.00021581,2]
[378164736,1754757033355,-460.0,0.00021581,2]
[378164737,1754757033365,-460.0,0.00021581,2]
[378164738,1754757033375,-462.50762814,0.00021581,2]
[378164739,1754757033385,-462.26820745,0.00021581,2]
[378164740,1754757033396,-460.0,0.00021581,2]
[378164741,1754757033406,-460.0,0.00021581,2]
[378164742,1754757033415,-460.0,0.00021581,2]
[378164743,1754757033426,-460.0,0.00021581,2]
[378164744,1754757033436,-426.07888201,0.00021581,2]
[378164745,1754757033446,-460.0,0.00021581,2]
[378164746,1754757033457,-460.0,0.00021581,2]
[378164747,1754757033467,-460.0,0.00021581,2]
[378164748,1754757033476,-460.0,0.00021581,2]
[378164749,1754757033486,-460.0,0.00021581,2]
[378164750,1754757033498,-460.0,0.00021581,2]
[378164751,1754757033508,-151.0,0.00021581,2]
[378164752,1754757033518,-460.0,0.00021581,2]
[378164753,1754757033528,-460.0,0.00021581,2]
[378164754,1754757033537,-460.0,0.00021581,2]
[378164755,1754757033548,-460.0,0.00021581,2]
[378164756,1754757033557,-460.0,0.00021581,2]
[378164757,1754757033567,-460.0,0.00021581,2]
[378164758,1754757033578,-460.0,0.00021581,2]
[378164759,1754757033589,-460.0,0.00021581,2]
[378164760,1754757033598,-460.0,0.00021581,2]
[378164761,1754757033608,-460.0,0.00021581,2]
[378164762,1754757033618,-460.0,0.00021581,2]
[378164763,1754757033628,-460.0,0.00021581,2]
[378164764,1754757033638,-460.0,0.00021581,2]
[378164765,1754757033647,-460.0,0.00021581,2]
[378164766,1754757033658,-460.0,0.00021581,2]
[378164767,1754757033668,-2044.77,0.00021581,2]
[378164768,1754757033678,-495.89,0.00021581,2]
[378164769,1754757033688,-460.0,0.00021581,2]
[378164770,1754757033697,-460.0,0.00021581,2]
[378164771,1754757033707,-460.0,0.00021581,2]
[378164772,1754757033717,-737.14,0.00021581,2]
[378164773,1754757033726,-460.0,0.00021581,2]
[378164774,1754757033735,-460.0,0.00021581,2]
[378164775,1754757033745,-460.0,0.00021581,2]
[378164776,1754757033755,-460.0,0.00021581,2]
[378164777,1754757033765,-460.0,0.00021581,2]
[378164778,1754757033776,-460.0,0.00021581,2]
[378164779,1754757033788,-460.0,0.00021581,2]
[378164780,1754757033798,-461.13572071,0.00021582,2]
[378164781,1754757033808,-362.82017109,0.00021582,2]
[378164782,1754757033819,-460.0,0.00021582,2]
[378164783,1754757033829,-460.0,0.00021582,2]
[378164784,1754757033839,-224.77094593,0.00021583,2]
[378164785,1754757033850,-460.0,0.00021583,2]
[378164786,1754757033860,-460.0,0.00021583,2]
[378164787,1754757033870,-460.0,0.00021583,2]
[378164788,1754757033881,-500.0,0.00021583,2]
[378164789,1754757033890,-462.1576888,0.00021583,2]
[378164790,1754757033900,-460.0,0.00021583,2]
[378164791,1754757033910,-460.0,0.00021583,2]
[378164792,1754757033920,-460.0,0.00021583,2]
[378164793,1754757033930,-460.0,0.00021583,2]
[378164794,1754757033940,-460.0,0.00021583,2]
[378164795,1754757033950,-296.12390763,0.00021583,2]
[378164796,1754757033960,-460.0,0.00021583,2]
[378164797,1754757033970,-460.0,0.00021583,2]
[378164798,1754757033980,-460.0,0.00021583,2]
[378164799,1754757033990,-445.9826461,0.00021583,2]
[378164800,1754757034000,-478.91111412,0.00021583,2]
[378164801,1754757034010,-460.0,0.00021583,2]
[378164802,1754757034020,-460.0,0.00021583,2]
[378164803,1754757034031,-460.0,0.00021583,2]
[378164804,1754757034042,-460.0,0.00021583,2]
[378164805,1754757034052,-460.0,0.00021583,2]